[Event "Titled Tuesday Blitz February 28 Late 2023"]
[White "Przybylski, Wojciech"]
[Black "benny_aizenberg"]
[WhiteFideId "1117599"]
[WhiteElo "2222"]
[BlackElo "2580"]
[Result "0-1"]
[Round "05"]
[TimeControl "180+2"]
[Date "2023.02.28"]
[WhiteClock "0:00:02"]
[BlackClock "0:00:06"]

1. d4 {[%clk 0:03:00]}  f5 {[%clk 0:02:58]} 2. e4 {[%clk 0:02:58]}  fxe4 {[%clk 0:02:56]} 3. Nc3 {[%clk 0:02:57]}  Nf6 {[%clk 0:02:49]} 4. Bg5 {[%clk 0:02:55]}  Nc6 {[%clk 0:02:45]} 5. d5 {[%clk 0:02:51]}  Ne5 {[%clk 0:02:45]} 6. Qd4 {[%clk 0:02:40]}  Nf7 {[%clk 0:02:45]} 7. Bf4 {[%clk 0:02:34]}  c5 {[%clk 0:02:23]} 8. dxc6 {[%clk 0:02:06]}  bxc6 {[%clk 0:02:21]} 9. Nxe4 {[%clk 0:02:03]}  e5 {[%clk 0:02:12]} 10. Nxf6+ {[%clk 0:01:47]}  Qxf6 {[%clk 0:02:04]} 11. Bxe5 {[%clk 0:01:41]}  Qxe5+ {[%clk 0:02:04]} 12. Qxe5+ {[%clk 0:01:40]}  Nxe5 {[%clk 0:02:04]} 13. O-O-O {[%clk 0:01:38]}  Kf7 {[%clk 0:01:55]} 14. h4 {[%clk 0:01:33]}  d5 {[%clk 0:01:53]} 15. f3 {[%clk 0:01:30]}  Bc5 {[%clk 0:01:47]} 16. Kd2 {[%clk 0:01:29]}  Rb8 {[%clk 0:01:46]} 17. b3 {[%clk 0:01:28]}  Re8 {[%clk 0:01:44]} 18. Nh3 {[%clk 0:01:27]}  Bxh3 {[%clk 0:01:43]} 19. Rxh3 {[%clk 0:01:27]}  a5 {[%clk 0:01:40]} 20. h5 {[%clk 0:01:23]}  a4 {[%clk 0:01:40]} 21. Rh4 {[%clk 0:01:23]}  a3 {[%clk 0:01:36]} 22. Re1 {[%clk 0:01:09]}  Bf2 {[%clk 0:01:32]} 23. Rf4+ {[%clk 0:01:08]}  Kg8 {[%clk 0:01:32]} 24. Re2 {[%clk 0:01:06]}  Bg3 {[%clk 0:01:22]} 25. Ra4 {[%clk 0:01:06]}  Ra8 {[%clk 0:01:15]} 26. Rb4 {[%clk 0:00:58]}  Reb8 {[%clk 0:01:02]} 27. Rd4 {[%clk 0:00:54]}  Nf7 {[%clk 0:00:57]} 28. Re6 {[%clk 0:00:45]}  Nd8 {[%clk 0:00:34]} 29. Re7 {[%clk 0:00:43]}  Bd6 {[%clk 0:00:25]} 30. Rd7 {[%clk 0:00:38]}  Be5 {[%clk 0:00:25]} 31. Rg4 {[%clk 0:00:34]}  Rb7 {[%clk 0:00:26]} 32. Rxb7 {[%clk 0:00:29]}  Nxb7 {[%clk 0:00:26]} 33. Rb4 {[%clk 0:00:27]}  Nd6 {[%clk 0:00:21]} 34. Rb6 {[%clk 0:00:25]}  c5 {[%clk 0:00:19]} 35. Ke3 {[%clk 0:00:20]}  Nf5+ {[%clk 0:00:15]} 36. Kf2 {[%clk 0:00:17]}  Bd4+ {[%clk 0:00:13]} 37. Ke1 {[%clk 0:00:16]}  Re8+ {[%clk 0:00:13]} 38. Kd2 {[%clk 0:00:15]}  c4 {[%clk 0:00:11]} 39. Rb4 {[%clk 0:00:05]}  c3+ {[%clk 0:00:10]} 40. Kd1 {[%clk 0:00:05]}  Bf2 {[%clk 0:00:06]} 41. Be2 {[%clk 0:00:04]}  Ne3+ {[%clk 0:00:06]} 42. Kc1 {[%clk 0:00:05]}  Nxg2 {[%clk 0:00:06]} 43. Kd1 {[%clk 0:00:03]}  Ne3+ {[%clk 0:00:06]} 44. Kc1 {[%clk 0:00:03]}  Nf5 {[%clk 0:00:05]} 45. Kd1 {[%clk 0:00:03]}  Ng3 {[%clk 0:00:06]} 46. Rb8 {[%clk 0:00:03]}  Rxb8 {[%clk 0:00:05]} 47. Bd3 {[%clk 0:00:02]}  Re8 {[%clk 0:00:05]} 48. Be4 {[%clk 0:00:02]}  dxe4 {[%clk 0:00:05]} 49. fxe4 {[%clk 0:00:03]}  Rxe4 {[%clk 0:00:05]} 50. h6 {[%clk 0:00:02]}  Re1# {[%clk 0:00:06]} 0-1


[Site "https://www.chess.com"]

[Event "Titled Tuesday Blitz February 28 Late 2023"]
[White "Mujumdar, Sameer"]
[Black "Krallis, Christos"]
[WhiteFideId "2029707"]
[BlackFideId "4298896"]
[WhiteElo "2104"]
[BlackElo "2243"]
[Result "1-0"]
[Round "05"]
[TimeControl "180+2"]
[Date "2023.02.28"]
[WhiteClock "0:01:43"]
[BlackClock "0:00:27"]

1. e4 {[%clk 0:03:00]}  d6 {[%clk 0:02:56]} 2. d4 {[%clk 0:03:00]}  Nf6 {[%clk 0:02:54]} 3. Nc3 {[%clk 0:03:00]}  c6 {[%clk 0:02:52]} 4. f3 {[%clk 0:02:56]}  e5 {[%clk 0:02:45]} 5. dxe5 {[%clk 0:02:52]}  dxe5 {[%clk 0:02:45]} 6. Qxd8+ {[%clk 0:02:53]}  Kxd8 {[%clk 0:02:45]} 7. Bc4 {[%clk 0:02:52]}  Be6 {[%clk 0:02:38]} 8. Bxe6 {[%clk 0:02:50]}  fxe6 {[%clk 0:02:38]} 9. Nh3 {[%clk 0:02:47]}  h6 {[%clk 0:02:34]} 10. Nf2 {[%clk 0:02:46]}  Kc7 {[%clk 0:02:29]} 11. Nd3 {[%clk 0:02:41]}  Nfd7 {[%clk 0:02:27]} 12. Be3 {[%clk 0:02:40]}  b5 {[%clk 0:02:22]} 13. O-O-O {[%clk 0:02:39]}  a5 {[%clk 0:02:17]} 14. Rd2 {[%clk 0:02:31]}  a4 {[%clk 0:02:06]} 15. Rhd1 {[%clk 0:02:29]}  b4 {[%clk 0:02:03]} 16. Ne2 {[%clk 0:02:21]}  Na6 {[%clk 0:02:01]} 17. b3 {[%clk 0:02:18]}  axb3 {[%clk 0:00:54]} 18. cxb3 {[%clk 0:02:18]}  Nac5 {[%clk 0:00:48]} 19. Rc2 {[%clk 0:02:08]}  Nxd3+ {[%clk 0:00:45]} 20. Rxd3 {[%clk 0:02:09]}  Nb6 {[%clk 0:00:42]} 21. f4 {[%clk 0:01:56]}  g5 {[%clk 0:00:32]} 22. fxe5 {[%clk 0:01:52]}  Bg7 {[%clk 0:00:31]} 23. Nd4 {[%clk 0:01:51]}  Bxe5 {[%clk 0:00:28]} 24. Nxc6 {[%clk 0:01:43]}  Bc3 {[%clk 0:00:27]} 25. Nxb4 {[%clk 0:01:43]} 1-0


[Site "https://www.chess.com"]

[Event "Titled Tuesday Blitz February 28 Late 2023"]
[White "The_Sherman_Variation"]
[Black "Pinheiro, Iung Alicio de O."]
[BlackFideId "2104350"]
[WhiteElo "2454"]
[BlackElo "2283"]
[Result "0-1"]
[Round "05"]
[TimeControl "180+2"]
[Date "2023.02.28"]
[WhiteClock "0:01:19"]
[BlackClock "0:01:08"]

1. Nf3 {[%clk 0:03:00]}  c5 {[%clk 0:02:49]} 2. c4 {[%clk 0:02:57]}  g6 {[%clk 0:02:40]} 3. g3 {[%clk 0:02:56]}  Bg7 {[%clk 0:02:38]} 4. Bg2 {[%clk 0:02:57]}  Nc6 {[%clk 0:02:39]} 5. Nc3 {[%clk 0:02:56]}  d6 {[%clk 0:02:40]} 6. O-O {[%clk 0:02:54]}  Be6 {[%clk 0:02:40]} 7. b3 {[%clk 0:02:53]}  Qc8 {[%clk 0:02:41]} 8. Bb2 {[%clk 0:02:52]}  Bh3 {[%clk 0:02:38]} 9. Na4 {[%clk 0:02:49]}  Nf6 {[%clk 0:02:33]} 10. d4 {[%clk 0:02:47]}  cxd4 {[%clk 0:02:29]} 11. Nxd4 {[%clk 0:02:48]}  h5 {[%clk 0:02:21]} 12. Nf3 {[%clk 0:02:32]}  h4 {[%clk 0:02:19]} 13. Qd2 {[%clk 0:02:17]}  hxg3 {[%clk 0:02:15]} 14. fxg3 {[%clk 0:02:18]}  Bxg2 {[%clk 0:02:15]} 15. Kxg2 {[%clk 0:02:19]}  Qh3+ {[%clk 0:02:14]} 16. Kg1 {[%clk 0:02:18]}  Ne4 {[%clk 0:01:59]} 17. Qf4 {[%clk 0:02:15]}  Bxb2 {[%clk 0:01:44]} 18. Nxb2 {[%clk 0:02:16]}  f5 {[%clk 0:01:43]} 19. Nh4 {[%clk 0:01:36]}  Nd4 {[%clk 0:01:26]} 20. Qe3 {[%clk 0:01:28]}  Rxh4 {[%clk 0:01:19]} 21. Rf2 {[%clk 0:01:19]}  Nxf2 {[%clk 0:01:14]} 22. Qxf2 {[%clk 0:01:19]}  Re4 {[%clk 0:01:08]} 0-1


[Site "https://www.chess.com"]

[Event "Titled Tuesday Blitz February 28 Late 2023"]
[White "Ramirez Allo, Eduardo"]
[Black "Gascon Del Nogal, Jose Rafael"]
[WhiteFideId "2224178"]
[BlackFideId "3902463"]
[WhiteElo "2447"]
[BlackElo "2473"]
[Result "1-0"]
[Round "05"]
[TimeControl "180+2"]
[Date "2023.02.28"]
[WhiteClock "0:00:04"]
[BlackClock "0:00:05"]

1. Nf3 {[%clk 0:02:56]}  d5 {[%clk 0:02:54]} 2. c4 {[%clk 0:02:55]}  e6 {[%clk 0:02:51]} 3. d4 {[%clk 0:02:54]}  h6 {[%clk 0:02:50]} 4. g3 {[%clk 0:02:52]}  Nf6 {[%clk 0:02:46]} 5. Bg2 {[%clk 0:02:53]}  Bd6 {[%clk 0:02:39]} 6. O-O {[%clk 0:02:53]}  O-O {[%clk 0:02:36]} 7. Qc2 {[%clk 0:02:53]}  b6 {[%clk 0:02:32]} 8. cxd5 {[%clk 0:02:52]}  exd5 {[%clk 0:02:30]} 9. Nc3 {[%clk 0:02:52]}  Bb7 {[%clk 0:02:30]} 10. Nb5 {[%clk 0:02:49]}  Nc6 {[%clk 0:02:30]} 11. Nxd6 {[%clk 0:02:48]}  cxd6 {[%clk 0:02:31]} 12. Qa4 {[%clk 0:02:23]}  Re8 {[%clk 0:02:15]} 13. e3 {[%clk 0:02:22]}  a5 {[%clk 0:02:09]} 14. Bd2 {[%clk 0:01:39]}  Qd7 {[%clk 0:02:00]} 15. Rfc1 {[%clk 0:01:38]}  Rec8 {[%clk 0:01:39]} 16. Rc2 {[%clk 0:01:35]}  Ba6 {[%clk 0:01:21]} 17. Rac1 {[%clk 0:01:33]}  Bc4 {[%clk 0:01:08]} 18. Be1 {[%clk 0:00:56]}  b5 {[%clk 0:01:02]} 19. Qa3 {[%clk 0:00:55]}  Ne4 {[%clk 0:00:16]} 20. Nd2 {[%clk 0:00:46]}  Nxd2 {[%clk 0:00:16]} 21. Rxd2 {[%clk 0:00:42]}  b4 {[%clk 0:00:14]} 22. Qa4 {[%clk 0:00:41]}  Qb7 {[%clk 0:00:04]} 23. Bf1 {[%clk 0:00:22]}  Bxf1 {[%clk 0:00:04]} 24. Kxf1 {[%clk 0:00:23]}  Ne7 {[%clk 0:00:04]} 25. Rdc2 {[%clk 0:00:23]}  Rxc2 {[%clk 0:00:04]} 26. Rxc2 {[%clk 0:00:24]}  Rc8 {[%clk 0:00:02]} 27. Rxc8+ {[%clk 0:00:17]}  Qxc8 {[%clk 0:00:03]} 28. b3 {[%clk 0:00:17]}  Qa6+ {[%clk 0:00:03]} 29. Kg2 {[%clk 0:00:16]}  Nc6 {[%clk 0:00:03]} 30. a3 {[%clk 0:00:12]}  bxa3 {[%clk 0:00:04]} 31. Qxa3 {[%clk 0:00:13]}  Qe2 {[%clk 0:00:04]} 32. Qxd6 {[%clk 0:00:12]}  Qxe1 {[%clk 0:00:03]} 33. Qxc6 {[%clk 0:00:12]}  Qd1 {[%clk 0:00:01]} 34. Qxd5 {[%clk 0:00:09]}  Qc2 {[%clk 0:00:01]} 35. Qd8+ {[%clk 0:00:08]}  Kh7 {[%clk 0:00:01]} 36. Qxa5 {[%clk 0:00:07]}  Qe4+ {[%clk 0:00:01]} 37. Kg1 {[%clk 0:00:07]}  Qb1+ {[%clk 0:00:01]} 38. Kg2 {[%clk 0:00:07]}  Qe4+ {[%clk 0:00:02]} 39. f3 {[%clk 0:00:06]}  Qc2+ {[%clk 0:00:02]} 40. Kf1 {[%clk 0:00:02]}  Qd1+ {[%clk 0:00:03]} 41. Kf2 {[%clk 0:00:03]}  Qc2+ {[%clk 0:00:03]} 42. Ke1 {[%clk 0:00:02]}  Qc1+ {[%clk 0:00:04]} 43. Ke2 {[%clk 0:00:03]}  Qc2+ {[%clk 0:00:04]} 44. Qd2 {[%clk 0:00:03]}  Qxb3 {[%clk 0:00:05]} 45. Qd3+ {[%clk 0:00:04]} 1-0


[Site "https://www.chess.com"]

[Event "Titled Tuesday Blitz February 28 Late 2023"]
[White "Rego, Pedro Filipe"]
[Black "Yurovskykh, Oleksandr"]
[WhiteFideId "1904310"]
[BlackFideId "14134020"]
[WhiteElo "2193"]
[BlackElo "2268"]
[Result "0-1"]
[Round "05"]
[TimeControl "180+2"]
[Date "2023.02.28"]
[WhiteClock "0:00:18"]
[BlackClock "0:00:15"]

1. c4 {[%clk 0:03:00]}  c6 {[%clk 0:02:50]} 2. d4 {[%clk 0:03:00]}  d5 {[%clk 0:02:48]} 3. Nf3 {[%clk 0:02:59]}  Nf6 {[%clk 0:02:48]} 4. e3 {[%clk 0:02:59]}  Bf5 {[%clk 0:02:43]} 5. Qb3 {[%clk 0:02:55]}  Qb6 {[%clk 0:02:42]} 6. c5 {[%clk 0:02:53]}  Qc7 {[%clk 0:02:38]} 7. Nc3 {[%clk 0:02:50]}  Nbd7 {[%clk 0:02:32]} 8. Be2 {[%clk 0:02:47]}  e6 {[%clk 0:02:14]} 9. Nh4 {[%clk 0:02:43]}  Bg4 {[%clk 0:02:14]} 10. Bxg4 {[%clk 0:02:31]}  Nxg4 {[%clk 0:02:15]} 11. h3 {[%clk 0:02:31]}  Ngf6 {[%clk 0:02:14]} 12. f4 {[%clk 0:02:28]}  Be7 {[%clk 0:02:14]} 13. Nf3 {[%clk 0:02:27]}  O-O {[%clk 0:02:14]} 14. O-O {[%clk 0:02:25]}  b6 {[%clk 0:02:12]} 15. cxb6 {[%clk 0:02:19]}  axb6 {[%clk 0:02:13]} 16. Ne5 {[%clk 0:02:16]}  c5 {[%clk 0:02:09]} 17. Nb5 {[%clk 0:02:10]}  Qb7 {[%clk 0:02:08]} 18. Bd2 {[%clk 0:02:06]}  Ne4 {[%clk 0:01:55]} 19. Be1 {[%clk 0:02:05]}  f6 {[%clk 0:01:43]} 20. Nxd7 {[%clk 0:01:58]}  Qxd7 {[%clk 0:01:44]} 21. Nc3 {[%clk 0:01:56]}  c4 {[%clk 0:01:36]} 22. Qc2 {[%clk 0:01:53]}  f5 {[%clk 0:01:27]} 23. Nxe4 {[%clk 0:01:38]}  fxe4 {[%clk 0:01:28]} 24. a3 {[%clk 0:01:31]}  b5 {[%clk 0:01:27]} 25. Bc3 {[%clk 0:01:29]}  g6 {[%clk 0:01:23]} 26. Qd2 {[%clk 0:01:29]}  Ra4 {[%clk 0:01:19]} 27. g4 {[%clk 0:01:26]}  Bd6 {[%clk 0:01:18]} 28. Kg2 {[%clk 0:01:21]}  Qe7 {[%clk 0:01:18]} 29. g5 {[%clk 0:01:09]}  h5 {[%clk 0:01:12]} 30. gxh6 {[%clk 0:01:08]}  Kh7 {[%clk 0:01:02]} 31. Kh2 {[%clk 0:00:56]}  g5 {[%clk 0:01:02]} 32. Rg1 {[%clk 0:00:52]}  gxf4 {[%clk 0:00:40]} 33. Rg7+ {[%clk 0:00:52]}  Qxg7 {[%clk 0:00:38]} 34. hxg7 {[%clk 0:00:52]}  fxe3+ {[%clk 0:00:38]} 35. Kg1 {[%clk 0:00:37]}  exd2 {[%clk 0:00:37]} 36. gxf8=N+ {[%clk 0:00:37]}  Bxf8 {[%clk 0:00:37]} 37. Bxd2 {[%clk 0:00:36]}  b4 {[%clk 0:00:34]} 38. Rf1 {[%clk 0:00:32]}  bxa3 {[%clk 0:00:34]} 39. bxa3 {[%clk 0:00:26]}  Bxa3 {[%clk 0:00:27]} 40. Rf6 {[%clk 0:00:25]}  Bb2 {[%clk 0:00:19]} 41. Be3 {[%clk 0:00:23]}  c3 {[%clk 0:00:18]} 42. Rf2 {[%clk 0:00:19]}  e5 {[%clk 0:00:15]} 43. Kg2 {[%clk 0:00:17]}  exd4 {[%clk 0:00:15]} 44. Bxd4 {[%clk 0:00:18]}  Rxd4 {[%clk 0:00:15]} 0-1


[Site "https://www.chess.com"]

[Event "Titled Tuesday Blitz February 28 Late 2023"]
[White "Klenburg, Michael"]
[Black "Jovic, Stanoje"]
[WhiteFideId "14102072"]
[BlackFideId "905020"]
[WhiteElo "2396"]
[BlackElo "2236"]
[Result "0-1"]
[Round "05"]
[TimeControl "180+2"]
[Date "2023.02.28"]
[WhiteClock "0:00:07"]
[BlackClock "0:00:27"]

1. e4 {[%clk 0:01:19]}  c6 {[%clk 0:02:59]} 2. d3 {[%clk 0:01:19]}  d5 {[%clk 0:02:58]} 3. Nd2 {[%clk 0:01:19]}  g6 {[%clk 0:02:58]} 4. Ngf3 {[%clk 0:01:20]}  Bg4 {[%clk 0:02:57]} 5. h3 {[%clk 0:01:19]}  Bxf3 {[%clk 0:02:58]} 6. Qxf3 {[%clk 0:01:19]}  Bg7 {[%clk 0:02:57]} 7. g3 {[%clk 0:01:19]}  Nf6 {[%clk 0:02:57]} 8. Bg2 {[%clk 0:01:19]}  O-O {[%clk 0:02:57]} 9. O-O {[%clk 0:01:19]}  a5 {[%clk 0:02:58]} 10. Qe2 {[%clk 0:01:19]}  a4 {[%clk 0:02:57]} 11. a3 {[%clk 0:01:17]}  e5 {[%clk 0:02:56]} 12. Nf3 {[%clk 0:01:16]}  Nfd7 {[%clk 0:02:52]} 13. Bd2 {[%clk 0:01:11]}  Na6 {[%clk 0:02:48]} 14. Bc3 {[%clk 0:01:11]}  Re8 {[%clk 0:02:42]} 15. Rfe1 {[%clk 0:01:10]}  b5 {[%clk 0:02:41]} 16. Bd2 {[%clk 0:01:00]}  d4 {[%clk 0:02:39]} 17. Nh2 {[%clk 0:00:55]}  c5 {[%clk 0:02:39]} 18. f4 {[%clk 0:00:55]}  Rc8 {[%clk 0:02:36]} 19. Nf3 {[%clk 0:00:53]}  c4 {[%clk 0:02:34]} 20. Bc1 {[%clk 0:00:53]}  Nac5 {[%clk 0:02:31]} 21. Nd2 {[%clk 0:00:52]}  c3 {[%clk 0:02:26]} 22. Nf3 {[%clk 0:00:51]}  cxb2 {[%clk 0:02:17]} 23. Bxb2 {[%clk 0:00:51]}  Qa5 {[%clk 0:02:11]} 24. fxe5 {[%clk 0:00:48]}  Nxe5 {[%clk 0:02:05]} 25. Nxd4 {[%clk 0:00:48]}  Rcd8 {[%clk 0:01:56]} 26. Rab1 {[%clk 0:00:45]}  Nexd3 {[%clk 0:01:47]} 27. cxd3 {[%clk 0:00:37]}  Bxd4+ {[%clk 0:01:46]} 28. Bxd4 {[%clk 0:00:37]}  Rxd4 {[%clk 0:01:46]} 29. Red1 {[%clk 0:00:33]}  Red8 {[%clk 0:01:43]} 30. e5 {[%clk 0:00:29]}  Qb6 {[%clk 0:01:35]} 31. Kh2 {[%clk 0:00:29]}  Rxd3 {[%clk 0:01:29]} 32. Rxd3 {[%clk 0:00:28]}  Rxd3 {[%clk 0:01:29]} 33. Qb2 {[%clk 0:00:25]}  Rb3 {[%clk 0:01:27]} 34. Qc1 {[%clk 0:00:25]}  b4 {[%clk 0:01:21]} 35. axb4 {[%clk 0:00:24]}  Qxb4 {[%clk 0:01:21]} 36. Ra1 {[%clk 0:00:24]}  a3 {[%clk 0:01:16]} 37. Qg5 {[%clk 0:00:24]}  Ne6 {[%clk 0:01:12]} 38. Qf6 {[%clk 0:00:20]}  Qc3 {[%clk 0:00:59]} 39. Rf1 {[%clk 0:00:20]}  Qxg3+ {[%clk 0:00:59]} 40. Kh1 {[%clk 0:00:19]}  Ng5 {[%clk 0:00:36]} 41. Qd8+ {[%clk 0:00:18]}  Kg7 {[%clk 0:00:36]} 42. Qf6+ {[%clk 0:00:18]}  Kh6 {[%clk 0:00:35]} 43. e6 {[%clk 0:00:16]}  fxe6 {[%clk 0:00:31]} 44. Qf8+ {[%clk 0:00:16]}  Kh5 {[%clk 0:00:31]} 45. Qg7 {[%clk 0:00:15]}  a2 {[%clk 0:00:28]} 46. Qf6 {[%clk 0:00:07]}  Rb1 {[%clk 0:00:27]} 0-1


[Site "https://www.chess.com"]

[Event "Titled Tuesday Blitz February 28 Late 2023"]
[White "Jimenez Almeida, Luis David"]
[Black "Kovalevsky, Stanislav"]
[WhiteFideId "22242244"]
[BlackFideId "13508598"]
[WhiteElo "2245"]
[BlackElo "2220"]
[Result "0-1"]
[Round "05"]
[TimeControl "180+2"]
[Date "2023.02.28"]
[WhiteClock "0:00:01"]
[BlackClock "0:00:10"]

1. e4 {[%clk 0:02:54]}  e6 {[%clk 0:03:00]} 2. d4 {[%clk 0:02:53]}  d5 {[%clk 0:03:01]} 3. e5 {[%clk 0:02:54]}  c5 {[%clk 0:03:01]} 4. c3 {[%clk 0:02:54]}  Nc6 {[%clk 0:03:01]} 5. Nf3 {[%clk 0:02:54]}  f6 {[%clk 0:03:02]} 6. Bd3 {[%clk 0:02:52]}  cxd4 {[%clk 0:03:01]} 7. cxd4 {[%clk 0:02:52]}  fxe5 {[%clk 0:03:02]} 8. dxe5 {[%clk 0:02:52]}  g6 {[%clk 0:02:59]} 9. h4 {[%clk 0:02:45]}  Bg7 {[%clk 0:02:54]} 10. Qe2 {[%clk 0:02:44]}  Nge7 {[%clk 0:02:39]} 11. h5 {[%clk 0:02:43]}  Nb4 {[%clk 0:02:22]} 12. Bb5+ {[%clk 0:02:35]}  Bd7 {[%clk 0:02:22]} 13. Nc3 {[%clk 0:02:32]}  a6 {[%clk 0:01:57]} 14. h6 {[%clk 0:02:31]}  Bf8 {[%clk 0:01:55]} 15. Bxd7+ {[%clk 0:02:23]}  Qxd7 {[%clk 0:01:55]} 16. Bg5 {[%clk 0:02:20]}  O-O-O {[%clk 0:01:36]} 17. O-O {[%clk 0:02:12]}  Kb8 {[%clk 0:01:31]} 18. Nd4 {[%clk 0:02:08]}  Nbc6 {[%clk 0:01:28]} 19. Nxc6+ {[%clk 0:01:59]}  Qxc6 {[%clk 0:01:27]} 20. Rac1 {[%clk 0:01:59]}  Qd7 {[%clk 0:00:56]} 21. Rfd1 {[%clk 0:01:57]}  Rc8 {[%clk 0:00:56]} 22. b4 {[%clk 0:01:48]}  Nf5 {[%clk 0:00:53]} 23. b5 {[%clk 0:01:41]}  a5 {[%clk 0:00:49]} 24. Ne4 {[%clk 0:01:34]}  Bxh6 {[%clk 0:00:44]} 25. Bxh6 {[%clk 0:01:32]}  Nxh6 {[%clk 0:00:45]} 26. Nd6 {[%clk 0:01:31]}  Rxc1 {[%clk 0:00:40]} 27. Rxc1 {[%clk 0:01:32]}  Nf5 {[%clk 0:00:39]} 28. Qd2 {[%clk 0:01:07]}  Nxd6 {[%clk 0:00:37]} 29. exd6 {[%clk 0:01:08]}  Qxd6 {[%clk 0:00:24]} 30. Qxa5 {[%clk 0:01:06]}  Rc8 {[%clk 0:00:22]} 31. Re1 {[%clk 0:00:42]}  b6 {[%clk 0:00:15]} 32. Qa6 {[%clk 0:00:30]}  Rc2 {[%clk 0:00:15]} 33. g3 {[%clk 0:00:25]}  e5 {[%clk 0:00:14]} 34. Re3 {[%clk 0:00:24]}  Qc5 {[%clk 0:00:12]} 35. Rf3 {[%clk 0:00:22]}  Rc1+ {[%clk 0:00:11]} 36. Kg2 {[%clk 0:00:22]}  d4 {[%clk 0:00:11]} 37. a4 {[%clk 0:00:18]}  d3 {[%clk 0:00:11]} 38. Rxd3 {[%clk 0:00:16]}  Qc7 {[%clk 0:00:10]} 39. a5 {[%clk 0:00:11]}  bxa5 {[%clk 0:00:07]} 40. Qf6 {[%clk 0:00:07]}  Qb7+ {[%clk 0:00:04]} 41. f3 {[%clk 0:00:07]}  Qxb5 {[%clk 0:00:03]} 42. Rd8+ {[%clk 0:00:06]}  Kb7 {[%clk 0:00:01]} 43. Qf7+ {[%clk 0:00:04]}  Rc7 {[%clk 0:00:01]} 44. Qe6 {[%clk 0:00:02]}  Qb2+ {[%clk 0:00:01]} 45. Kh3 {[%clk 0:00:03]}  Qb6 {[%clk 0:00:02]} 46. Qd5+ {[%clk 0:00:03]}  Qc6 {[%clk 0:00:02]} 47. Qxa5 {[%clk 0:00:03]}  Rd7 {[%clk 0:00:02]} 48. Qa8+ {[%clk 0:00:02]}  Kb6 {[%clk 0:00:03]} 49. Rb8+ {[%clk 0:00:02]}  Kc5 {[%clk 0:00:03]} 50. Rc8 {[%clk 0:00:01]}  Rc7 {[%clk 0:00:04]} 51. Qa5+ {[%clk 0:00:01]}  Kd6 {[%clk 0:00:04]} 52. Qb4+ {[%clk 0:00:02]}  Qc5 {[%clk 0:00:04]} 53. Qd2+ {[%clk 0:00:01]}  Ke6 {[%clk 0:00:05]} 54. Rd8 {[%clk 0:00:01]}  Rf7 {[%clk 0:00:04]} 55. Qe2 {[%clk 0:00:01]}  Kf6 {[%clk 0:00:05]} 56. Re8 {[%clk 0:00:02]}  Qd6 {[%clk 0:00:04]} 57. Qe4 {[%clk 0:00:02]}  Qd7+ {[%clk 0:00:05]} 58. g4 {[%clk 0:00:02]}  Qxe8 {[%clk 0:00:06]} 59. Qc6+ {[%clk 0:00:01]}  Qe6 {[%clk 0:00:07]} 60. Qc7 {[%clk 0:00:01]}  Qe7 {[%clk 0:00:07]} 61. Qc6+ {[%clk 0:00:01]}  Qe6 {[%clk 0:00:07]} 62. Qe4 {[%clk 0:00:02]}  Kg7 {[%clk 0:00:08]} 63. Qa8 {[%clk 0:00:02]}  Qf6 {[%clk 0:00:08]} 64. Kg3 {[%clk 0:00:02]}  Qf4+ {[%clk 0:00:08]} 65. Kh4 {[%clk 0:00:03]}  Qxf3 {[%clk 0:00:09]} 66. Kg5 {[%clk 0:00:02]}  Qf4+ {[%clk 0:00:08]} 67. Kh4 {[%clk 0:00:01]}  Qh2+ {[%clk 0:00:09]} 68. Kg5 {[%clk 0:00:01]}  h6# {[%clk 0:00:10]} 0-1


[Site "https://www.chess.com"]

[Event "Titled Tuesday Blitz February 28 Late 2023"]
[White "Nefedov, Sergey"]
[Black "Figorito, Nick"]
[WhiteFideId "24113417"]
[BlackFideId "30923689"]
[WhiteElo "2227"]
[BlackElo "2381"]
[Result "1-0"]
[Round "05"]
[TimeControl "180+2"]
[Date "2023.02.28"]
[WhiteClock "0:01:38"]
[BlackClock "0:00:52"]

1. d4 {[%clk 0:03:00]}  Nf6 {[%clk 0:03:00]} 2. Nf3 {[%clk 0:03:00]}  g6 {[%clk 0:03:00]} 3. c4 {[%clk 0:03:00]}  Bg7 {[%clk 0:03:01]} 4. Nc3 {[%clk 0:03:00]}  d5 {[%clk 0:03:02]} 5. e3 {[%clk 0:03:00]}  O-O {[%clk 0:03:02]} 6. Qb3 {[%clk 0:03:00]}  dxc4 {[%clk 0:03:02]} 7. Bxc4 {[%clk 0:03:01]}  Nc6 {[%clk 0:03:02]} 8. Be2 {[%clk 0:03:00]}  Na5 {[%clk 0:03:00]} 9. Qa4 {[%clk 0:02:56]}  c5 {[%clk 0:02:58]} 10. dxc5 {[%clk 0:02:55]}  Bd7 {[%clk 0:02:58]} 11. Qb4 {[%clk 0:02:44]}  Qc7 {[%clk 0:02:32]} 12. O-O {[%clk 0:02:43]}  Nc6 {[%clk 0:02:33]} 13. Qa3 {[%clk 0:02:42]}  a6 {[%clk 0:02:16]} 14. e4 {[%clk 0:02:15]}  Rfc8 {[%clk 0:02:09]} 15. Be3 {[%clk 0:02:13]}  e6 {[%clk 0:01:56]} 16. h3 {[%clk 0:02:09]}  Bf8 {[%clk 0:01:55]} 17. Rac1 {[%clk 0:02:02]}  Nh5 {[%clk 0:01:53]} 18. Rfd1 {[%clk 0:01:58]}  Be8 {[%clk 0:01:49]} 19. Na4 {[%clk 0:01:44]}  b5 {[%clk 0:01:28]} 20. cxb6 {[%clk 0:01:42]}  Bxa3 {[%clk 0:01:23]} 21. bxc7 {[%clk 0:01:40]}  Bf8 {[%clk 0:00:52]} 22. Nb6 {[%clk 0:01:38]} 1-0


[Site "https://www.chess.com"]